[Event "FIDE World Rapid Chess Championship 2021"]
[White "Niemann, Hans Moke"]
[Black "Sarana, Alexey"]
[WhiteFideId "2093596"]
[BlackFideId "24133795"]
[WhiteElo "2327"]
[BlackElo "2680"]
[Result "1-0"]
[Round "07"]
[TimeControl "900+10"]
[Date "2021.12.27"]
[WhiteClock "0:11:04"]
[BlackClock "0:01:38"]

1. e4 {[%clk 0:15:00]}  c5 {[%clk 0:15:00]} 2. Nf3 {[%clk 0:15:00]}  d6 {[%clk 0:15:00]} 3. Nc3 {[%clk 0:15:00]}  Nf6 {[%clk 0:15:00]} 4. Bb5+ {[%clk 0:15:00]}  Nbd7 {[%clk 0:15:00]} 5. a4 {[%clk 0:15:00]}  g6 {[%clk 0:15:56]} 6. d4 {[%clk 0:15:37]}  cxd4 {[%clk 0:15:56]} 7. Nxd4 {[%clk 0:15:37]}  Bg7 {[%clk 0:15:56]} 8. O-O {[%clk 0:15:37]}  O-O {[%clk 0:15:56]} 9. Be3 {[%clk 0:15:37]}  Qc7 {[%clk 0:15:56]} 10. Be2 {[%clk 0:15:37]}  a6 {[%clk 0:15:56]} 11. f4 {[%clk 0:15:37]}  Nb6 {[%clk 0:15:11]} 12. a5 {[%clk 0:14:09]}  Nc4 {[%clk 0:15:11]} 13. Bxc4 {[%clk 0:14:09]}  Qxc4 {[%clk 0:15:11]} 14. Qd3 {[%clk 0:14:09]}  Qxd3 {[%clk 0:14:59]} 15. cxd3 {[%clk 0:12:54]}  Ng4 {[%clk 0:14:59]} 16. Nc2 {[%clk 0:12:54]}  Nxe3 {[%clk 0:14:59]} 17. Nxe3 {[%clk 0:12:54]}  Bd4 {[%clk 0:14:59]} 18. Kf2 {[%clk 0:12:54]}  f5 {[%clk 0:14:59]} 19. Ke2 {[%clk 0:13:17]}  Bd7 {[%clk 0:12:33]} 20. Kd2 {[%clk 0:13:17]}  Bc6 {[%clk 0:12:33]} 21. Ned5 {[%clk 0:13:17]}  Rf7 {[%clk 0:11:46]} 22. Nc7 {[%clk 0:12:27]}  Rc8 {[%clk 0:11:46]} 23. Ne6 {[%clk 0:12:27]}  Bxc3+ {[%clk 0:11:46]} 24. bxc3 {[%clk 0:12:27]}  fxe4 {[%clk 0:11:46]} 25. Ng5 {[%clk 0:12:27]}  e3+ {[%clk 0:11:02]} 26. Kxe3 {[%clk 0:12:01]}  Rf5 {[%clk 0:11:02]} 27. g4 {[%clk 0:12:01]}  Rf6 {[%clk 0:07:55]} 28. c4 {[%clk 0:11:58]}  Rcf8 {[%clk 0:07:55]} 29. Ne4 {[%clk 0:12:04]}  R6f7 {[%clk 0:05:02]} 30. Rf2 {[%clk 0:12:04]}  d5 {[%clk 0:05:02]} 31. cxd5 {[%clk 0:12:04]}  Bxd5 {[%clk 0:05:02]} 32. Rc1 {[%clk 0:12:04]}  Bc6 {[%clk 0:03:55]} 33. Rc5 {[%clk 0:11:46]}  Kg7 {[%clk 0:03:55]} 34. Ng5 {[%clk 0:11:46]}  Rf6 {[%clk 0:03:55]} 35. Re5 {[%clk 0:11:46]}  Re8 {[%clk 0:03:55]} 36. h3 {[%clk 0:11:46]}  Rd6 {[%clk 0:03:55]} 37. Ne6+ {[%clk 0:11:46]}  Kg8 {[%clk 0:03:55]} 38. f5 {[%clk 0:11:46]}  gxf5 {[%clk 0:03:22]} 39. Rfxf5 {[%clk 0:11:24]}  Bd7 {[%clk 0:03:22]} 40. Rg5+ {[%clk 0:11:24]}  Kf7 {[%clk 0:03:22]} 41. Nc5 {[%clk 0:11:24]}  Bc6 {[%clk 0:03:22]} 42. Rgf5+ {[%clk 0:11:24]}  Rf6 {[%clk 0:03:22]} 43. Rxf6+ {[%clk 0:11:24]}  exf6 {[%clk 0:03:22]} 44. Rxe8 {[%clk 0:11:24]}  Kxe8 {[%clk 0:03:22]} 45. Kf4 {[%clk 0:11:06]}  Ke7 {[%clk 0:02:39]} 46. h4 {[%clk 0:11:06]}  Kd6 {[%clk 0:02:39]} 47. Ne4+ {[%clk 0:11:06]}  Ke6 {[%clk 0:02:39]} 48. h5 {[%clk 0:11:06]}  h6 {[%clk 0:02:39]} 49. Ng3 {[%clk 0:11:06]}  b6 {[%clk 0:01:38]} 50. axb6 {[%clk 0:11:04]}  a5 {[%clk 0:01:38]} 51. Ke3 {[%clk 0:11:04]}  a4 {[%clk 0:01:38]} 52. Kd4 {[%clk 0:11:04]}  a3 {[%clk 0:01:38]} 53. Kc3 {[%clk 0:11:04]}  Bf3 {[%clk 0:01:38]} 54. Nf5 {[%clk 0:11:04]}  Kd7 {[%clk 0:01:38]} 55. Nxh6 {[%clk 0:11:04]}  Kc6 {[%clk 0:01:38]} 56. Ng8 {[%clk 0:11:04]}  Kd5 {[%clk 0:01:38]} 1-0


[Site "http://www.Chess.com"]

[Event "FIDE World Rapid Chess Championship 2021"]
[White "Paravyan, David"]
[Black "Najer, Evgeniy"]
[WhiteFideId "4194985"]
[BlackFideId "4118987"]
[WhiteElo "2671"]
[BlackElo "2565"]
[Result "1/2-1/2"]
[Round "07"]
[TimeControl "900+10"]
[Date "2021.12.27"]
[WhiteClock "0:00:45"]
[BlackClock "0:00:29"]

1. e4 {[%clk 0:15:00]}  e5 {[%clk 0:15:00]} 2. Nf3 {[%clk 0:15:00]}  Nc6 {[%clk 0:15:00]} 3. Nc3 {[%clk 0:15:00]}  Nf6 {[%clk 0:15:00]} 4. d4 {[%clk 0:15:00]}  exd4 {[%clk 0:15:00]} 5. Nxd4 {[%clk 0:15:00]}  Bb4 {[%clk 0:15:00]} 6. Nxc6 {[%clk 0:15:00]}  bxc6 {[%clk 0:15:00]} 7. Bd3 {[%clk 0:15:00]}  d5 {[%clk 0:15:00]} 8. exd5 {[%clk 0:15:00]}  O-O {[%clk 0:15:00]} 9. O-O {[%clk 0:15:00]}  cxd5 {[%clk 0:15:00]} 10. Bg5 {[%clk 0:15:00]}  c6 {[%clk 0:15:00]} 11. Qf3 {[%clk 0:15:00]}  h6 {[%clk 0:15:37]} 12. Bxf6 {[%clk 0:16:41]}  Qxf6 {[%clk 0:15:37]} 13. Qxf6 {[%clk 0:16:41]}  gxf6 {[%clk 0:15:37]} 14. Ne2 {[%clk 0:16:41]}  Rb8 {[%clk 0:15:37]} 15. b3 {[%clk 0:16:41]}  Re8 {[%clk 0:15:37]} 16. h3 {[%clk 0:16:42]}  Kf8 {[%clk 0:12:11]} 17. Rad1 {[%clk 0:15:36]}  a5 {[%clk 0:12:11]} 18. Nd4 {[%clk 0:15:39]}  c5 {[%clk 0:09:05]} 19. Nb5 {[%clk 0:07:24]}  a4 {[%clk 0:09:05]} 20. Nd6 {[%clk 0:07:24]}  Rd8 {[%clk 0:06:31]} 21. Nxc8 {[%clk 0:07:35]}  Rbxc8 {[%clk 0:06:31]} 22. Ba6 {[%clk 0:07:35]}  axb3 {[%clk 0:06:39]} 23. axb3 {[%clk 0:05:11]}  Rc6 {[%clk 0:04:02]} 24. Be2 {[%clk 0:02:07]}  Re6 {[%clk 0:04:02]} 25. Bf3 {[%clk 0:02:07]}  d4 {[%clk 0:04:02]} 26. Rd3 {[%clk 0:02:07]}  Bc3 {[%clk 0:04:02]} 27. Bg4 {[%clk 0:02:07]}  Re5 {[%clk 0:03:02]} 28. Rf3 {[%clk 0:01:26]}  Ke7 {[%clk 0:03:02]} 29. Bf5 {[%clk 0:01:26]}  Rd6 {[%clk 0:03:02]} 30. g3 {[%clk 0:01:26]}  Kd8 {[%clk 0:03:02]} 31. Kg2 {[%clk 0:01:26]}  Kc7 {[%clk 0:03:02]} 32. Bd3 {[%clk 0:01:26]}  Kd8 {[%clk 0:01:29]} 33. Rd1 {[%clk 0:01:47]}  Ke7 {[%clk 0:01:29]} 34. Rf4 {[%clk 0:01:47]}  Kf8 {[%clk 0:01:29]} 35. Rh4 {[%clk 0:01:47]}  Kg7 {[%clk 0:01:29]} 36. Rf1 {[%clk 0:01:47]}  Rb6 {[%clk 0:01:29]} 37. f4 {[%clk 0:01:47]}  Re3 {[%clk 0:01:08]} 38. Rh5 {[%clk 0:00:37]}  Rc6 {[%clk 0:01:08]} 39. Rd5 {[%clk 0:00:37]}  Rc7 {[%clk 0:01:08]} 40. Rf3 {[%clk 0:00:37]}  Re8 {[%clk 0:01:08]} 41. Rf2 {[%clk 0:00:37]}  Bb4 {[%clk 0:01:08]} 42. Kf3 {[%clk 0:00:37]}  Re3+ {[%clk 0:01:08]} 43. Kg4 {[%clk 0:00:37]}  Rce7 {[%clk 0:00:33]} 44. Rf3 {[%clk 0:00:35]}  Re1 {[%clk 0:00:33]} 45. Rd8 {[%clk 0:00:35]}  R1e3 {[%clk 0:00:33]} 46. Rd5 {[%clk 0:00:35]}  Re1 {[%clk 0:00:33]} 47. h4 {[%clk 0:00:35]}  Re8 {[%clk 0:00:33]} 48. Kf5 {[%clk 0:00:35]}  R8e7 {[%clk 0:00:33]} 49. g4 {[%clk 0:00:35]}  Rh1 {[%clk 0:00:33]} 50. h5 {[%clk 0:00:35]}  Rg1 {[%clk 0:00:13]} 51. Rf1 {[%clk 0:00:13]}  Rg3 {[%clk 0:00:13]} 52. Ra1 {[%clk 0:00:13]}  Rf3 {[%clk 0:00:13]} 53. Rf1 {[%clk 0:00:13]}  Rg3 {[%clk 0:00:13]} 54. Rf2 {[%clk 0:00:13]}  Rge3 {[%clk 0:00:13]} 55. g5 {[%clk 0:00:13]}  fxg5 {[%clk 0:00:13]} 56. fxg5 {[%clk 0:00:13]}  hxg5 {[%clk 0:00:13]} 57. Kxg5 {[%clk 0:00:13]}  R3e5+ {[%clk 0:00:13]} 58. Rf5 {[%clk 0:00:13]}  Rxd5 {[%clk 0:00:13]} 59. Rxd5 {[%clk 0:00:13]}  Re5+ {[%clk 0:00:13]} 60. Rxe5 {[%clk 0:00:13]}  f6+ {[%clk 0:00:13]} 61. Kf5 {[%clk 0:00:13]}  fxe5 {[%clk 0:00:13]} 62. Kxe5 {[%clk 0:00:13]}  Kh6 {[%clk 0:00:13]} 63. Be2 {[%clk 0:00:13]}  Kg5 {[%clk 0:00:29]} 64. Ke4 {[%clk 0:00:45]} 1/2-1/2


[Site "http://www.Chess.com"]

[Event "FIDE World Rapid Chess Championship 2021"]
[White "Gareyev, Timur"]
[Black "Matlakov, Maxim"]
[WhiteFideId "14200937"]
[BlackFideId "4168003"]
[WhiteElo "2578"]
[BlackElo "2652"]
[Result "1-0"]
[Round "07"]
[TimeControl "900+10"]
[Date "2021.12.27"]
[WhiteClock "0:01:14"]
[BlackClock "0:01:36"]

1. d4 {[%clk 0:15:00]}  Nf6 {[%clk 0:15:00]} 2. c4 {[%clk 0:15:00]}  e6 {[%clk 0:15:00]} 3. Nc3 {[%clk 0:15:00]}  Bb4 {[%clk 0:15:00]} 4. Nf3 {[%clk 0:15:00]}  d5 {[%clk 0:15:00]} 5. Qa4+ {[%clk 0:14:43]}  Nc6 {[%clk 0:15:50]} 6. e3 {[%clk 0:14:43]}  O-O {[%clk 0:15:50]} 7. a3 {[%clk 0:14:43]}  Bxc3+ {[%clk 0:15:50]} 8. bxc3 {[%clk 0:14:43]}  Bd7 {[%clk 0:15:50]} 9. Qc2 {[%clk 0:14:43]}  Na5 {[%clk 0:15:50]} 10. cxd5 {[%clk 0:14:43]}  exd5 {[%clk 0:15:50]} 11. a4 {[%clk 0:14:43]}  Re8 {[%clk 0:15:50]} 12. Ba3 {[%clk 0:15:24]}  Ne4 {[%clk 0:14:57]} 13. Bd3 {[%clk 0:15:24]}  Bf5 {[%clk 0:14:57]} 14. O-O {[%clk 0:15:24]}  Nc4 {[%clk 0:13:43]} 15. Bxc4 {[%clk 0:13:39]}  dxc4 {[%clk 0:13:43]} 16. Qb2 {[%clk 0:13:04]}  b6 {[%clk 0:13:18]} 17. Ne5 {[%clk 0:10:50]}  Nd6 {[%clk 0:06:24]} 18. Rfe1 {[%clk 0:10:11]}  c5 {[%clk 0:06:24]} 19. Rad1 {[%clk 0:10:19]}  Qc7 {[%clk 0:03:33]} 20. h3 {[%clk 0:09:33]}  f6 {[%clk 0:03:18]} 21. Ng4 {[%clk 0:05:02]}  Bd3 {[%clk 0:03:18]} 22. f3 {[%clk 0:05:02]}  cxd4 {[%clk 0:03:18]} 23. cxd4 {[%clk 0:05:00]}  Nf5 {[%clk 0:02:04]} 24. e4 {[%clk 0:05:00]}  Qg3 {[%clk 0:02:04]} 25. Bb4 {[%clk 0:05:00]}  h5 {[%clk 0:02:04]} 26. exf5 {[%clk 0:02:27]}  hxg4 {[%clk 0:01:56]} 27. hxg4 {[%clk 0:02:27]}  Kf7 {[%clk 0:01:56]} 28. Re6 {[%clk 0:02:27]}  Rxe6 {[%clk 0:01:36]} 29. fxe6+ {[%clk 0:01:14]}  Kxe6 {[%clk 0:01:36]} 30. Rxd3 {[%clk 0:01:14]}  Kd5 {[%clk 0:01:36]} 1-0


[Site "http://www.Chess.com"]

[Event "FIDE World Rapid Chess Championship 2021"]
[White "Socko, Bartosz"]
[Black "Alekseenko, Kirill"]
[WhiteFideId "1107038"]
[BlackFideId "4135539"]
[WhiteElo "2562"]
[BlackElo "2637"]
[Result "0-1"]
[Round "07"]
[TimeControl "900+10"]
[Date "2021.12.27"]
[WhiteClock "0:00:20"]
[BlackClock "0:00:25"]

1. d4 {[%clk 0:15:00]}  d5 {[%clk 0:15:00]} 2. c4 {[%clk 0:15:00]}  dxc4 {[%clk 0:15:00]} 3. e4 {[%clk 0:15:00]}  Nf6 {[%clk 0:15:00]} 4. e5 {[%clk 0:15:00]}  Nd5 {[%clk 0:15:00]} 5. Bxc4 {[%clk 0:15:00]}  Nb6 {[%clk 0:15:00]} 6. Bd3 {[%clk 0:15:00]}  Nc6 {[%clk 0:15:00]} 7. Be3 {[%clk 0:15:00]}  Be6 {[%clk 0:15:00]} 8. Nf3 {[%clk 0:15:41]}  Qd7 {[%clk 0:15:43]} 9. Nc3 {[%clk 0:15:41]}  Nb4 {[%clk 0:15:43]} 10. Be2 {[%clk 0:15:41]}  Bf5 {[%clk 0:15:43]} 11. O-O {[%clk 0:15:41]}  e6 {[%clk 0:15:43]} 12. Nh4 {[%clk 0:15:41]}  Bc2 {[%clk 0:15:12]} 13. Qd2 {[%clk 0:15:03]}  Be7 {[%clk 0:15:12]} 14. a3 {[%clk 0:15:03]}  Bxh4 {[%clk 0:15:12]} 15. axb4 {[%clk 0:15:03]}  Bg6 {[%clk 0:13:57]} 16. b5 {[%clk 0:13:51]}  Be7 {[%clk 0:13:57]} 17. Ra2 {[%clk 0:13:25]}  O-O {[%clk 0:11:53]} 18. Rfa1 {[%clk 0:13:25]}  Bb4 {[%clk 0:11:53]} 19. Rxa7 {[%clk 0:13:20]}  Rxa7 {[%clk 0:09:31]} 20. Rxa7 {[%clk 0:13:20]}  Nd5 {[%clk 0:09:31]} 21. h4 {[%clk 0:13:20]}  h6 {[%clk 0:09:31]} 22. h5 {[%clk 0:12:35]}  Be4 {[%clk 0:08:06]} 23. Ra4 {[%clk 0:12:35]}  Bf5 {[%clk 0:08:06]} 24. Qc1 {[%clk 0:11:47]}  Nxe3 {[%clk 0:07:16]} 25. Qxe3 {[%clk 0:11:47]}  Be7 {[%clk 0:07:16]} 26. Bf3 {[%clk 0:11:47]}  Bg5 {[%clk 0:07:16]} 27. Qe2 {[%clk 0:11:47]}  b6 {[%clk 0:06:28]} 28. Bc6 {[%clk 0:10:09]}  Qe7 {[%clk 0:06:28]} 29. d5 {[%clk 0:09:46]}  Rd8 {[%clk 0:05:49]} 30. Qf3 {[%clk 0:09:46]}  Bc2 {[%clk 0:05:49]} 31. Ra7 {[%clk 0:07:02]}  exd5 {[%clk 0:04:48]} 32. Nxd5 {[%clk 0:07:02]}  Qxe5 {[%clk 0:04:48]} 33. Rxc7 {[%clk 0:07:02]}  Bf5 {[%clk 0:04:48]} 34. Rb7 {[%clk 0:07:02]}  Ra8 {[%clk 0:03:54]} 35. g3 {[%clk 0:06:09]}  Ra1+ {[%clk 0:02:12]} 36. Kh2 {[%clk 0:05:23]}  Be6 {[%clk 0:02:12]} 37. Nc7 {[%clk 0:05:23]}  Bc8 {[%clk 0:01:21]} 38. Bd5 {[%clk 0:03:55]}  Bf6 {[%clk 0:01:21]} 39. Rb8 {[%clk 0:02:05]}  Qxc7 {[%clk 0:01:29]} 40. Qf4 {[%clk 0:02:05]}  Qc5 {[%clk 0:01:29]} 41. Qf5 {[%clk 0:00:20]}  Rc1 {[%clk 0:00:25]} 42. Be4 {[%clk 0:00:20]}  Qc7 {[%clk 0:00:25]} 43. Ra8 {[%clk 0:00:20]}  Bd8 {[%clk 0:00:25]} 44. Qh7+ {[%clk 0:00:20]}  Kf8 {[%clk 0:00:25]} 45. Qh8+ {[%clk 0:00:20]}  Ke7 {[%clk 0:00:25]} 46. Qxg7 {[%clk 0:00:20]}  Qc5 {[%clk 0:00:25]} 47. Ra7+ {[%clk 0:00:20]}  Bc7 {[%clk 0:00:25]} 48. Kg2 {[%clk 0:00:20]}  Qxh5 {[%clk 0:00:25]} 0-1


[Site "http://www.Chess.com"]

[Event "FIDE World Rapid Chess Championship 2021"]
[White "Cheparinov, Ivan"]
[Black "Muradli, Mahammad"]
[WhiteFideId "2905540"]
[BlackFideId "13409301"]
[WhiteElo "2621"]
[BlackElo "2285"]
[Result "1-0"]
[Round "07"]
[TimeControl "900+10"]
[Date "2021.12.27"]
[WhiteClock "0:01:55"]
[BlackClock "0:00:08"]

1. d4 {[%clk 0:15:00]}  Nf6 {[%clk 0:15:00]} 2. c4 {[%clk 0:15:00]}  e6 {[%clk 0:15:00]} 3. Nf3 {[%clk 0:15:00]}  d5 {[%clk 0:15:00]} 4. g3 {[%clk 0:15:00]}  Be7 {[%clk 0:15:00]} 5. Bg2 {[%clk 0:15:00]}  O-O {[%clk 0:15:00]} 6. Nc3 {[%clk 0:15:50]}  Nbd7 {[%clk 0:15:26]} 7. Qd3 {[%clk 0:15:50]}  b6 {[%clk 0:15:26]} 8. cxd5 {[%clk 0:15:50]}  Nxd5 {[%clk 0:15:26]} 9. O-O {[%clk 0:15:50]}  Bb7 {[%clk 0:15:26]} 10. Rd1 {[%clk 0:15:50]}  Rc8 {[%clk 0:15:26]} 11. e4 {[%clk 0:15:50]}  Nxc3 {[%clk 0:15:26]} 12. bxc3 {[%clk 0:15:50]}  c5 {[%clk 0:15:26]} 13. Bf4 {[%clk 0:15:42]}  cxd4 {[%clk 0:15:03]} 14. cxd4 {[%clk 0:15:42]}  h6 {[%clk 0:15:03]} 15. h4 {[%clk 0:15:42]}  Nf6 {[%clk 0:15:03]} 16. Ne5 {[%clk 0:14:18]}  b5 {[%clk 0:13:28]} 17. d5 {[%clk 0:14:18]}  Qb6 {[%clk 0:13:28]} 18. Rab1 {[%clk 0:13:34]}  a6 {[%clk 0:12:38]} 19. a4 {[%clk 0:07:33]}  exd5 {[%clk 0:12:15]} 20. exd5 {[%clk 0:07:33]}  Bc5 {[%clk 0:11:15]} 21. axb5 {[%clk 0:06:20]}  Bxf2+ {[%clk 0:11:15]} 22. Kh1 {[%clk 0:06:20]}  axb5 {[%clk 0:09:23]} 23. Rxb5 {[%clk 0:05:57]}  Qa6 {[%clk 0:09:23]} 24. Rb2 {[%clk 0:06:06]}  Bc5 {[%clk 0:06:35]} 25. Qxa6 {[%clk 0:06:06]}  Bxa6 {[%clk 0:06:35]} 26. d6 {[%clk 0:06:06]}  Rcd8 {[%clk 0:05:14]} 27. Nc6 {[%clk 0:05:46]}  Rd7 {[%clk 0:05:14]} 28. Nb8 {[%clk 0:05:46]}  Ra7 {[%clk 0:05:14]} 29. d7 {[%clk 0:05:46]}  Rd8 {[%clk 0:05:14]} 30. Rc2 {[%clk 0:04:32]}  Rdxd7 {[%clk 0:00:17]} 31. Nxd7 {[%clk 0:02:44]}  Nxd7 {[%clk 0:00:17]} 32. Rxd7 {[%clk 0:02:44]}  Rxd7 {[%clk 0:00:17]} 33. Rxc5 {[%clk 0:02:44]}  Bb7 {[%clk 0:00:17]} 34. Bxb7 {[%clk 0:02:44]}  Rxb7 {[%clk 0:00:17]} 35. Kg2 {[%clk 0:02:44]}  Kh7 {[%clk 0:00:17]} 36. Rc7 {[%clk 0:02:44]}  Rb2+ {[%clk 0:00:17]} 37. Kf3 {[%clk 0:02:44]}  Kg6 {[%clk 0:00:08]} 38. Rc5 {[%clk 0:01:55]}  f5 {[%clk 0:00:08]} 39. Rc7 {[%clk 0:01:55]}  Kh5 {[%clk 0:00:08]} 40. Rxg7 {[%clk 0:01:55]}  Rf2+ {[%clk 0:00:08]} 41. Ke3 {[%clk 0:01:55]}  Rf3+ {[%clk 0:00:08]} 42. Kd4 {[%clk 0:01:55]}  Rd3+ {[%clk 0:00:08]} 1-0


[Site "http://www.Chess.com"]

[Event "FIDE World Rapid Chess Championship 2021"]
[White "Mamedyarov, Shakhriyar"]
[Black "Harsha, Bharathakoti"]
[WhiteFideId "13401319"]
[BlackFideId "5078776"]
[WhiteElo "2727"]
[BlackElo "2484"]
[Result "1-0"]
[Round "07"]
[TimeControl "900+10"]
[Date "2021.12.27"]
[WhiteClock "0:01:14"]
[BlackClock "0:00:31"]

1. d4 {[%clk 0:15:00]}  e6 {[%clk 0:15:00]} 2. c4 {[%clk 0:15:00]}  Bb4+ {[%clk 0:15:00]} 3. Nc3 {[%clk 0:15:00]}  Nf6 {[%clk 0:15:00]} 4. Qc2 {[%clk 0:15:00]}  d5 {[%clk 0:15:07]} 5. cxd5 {[%clk 0:15:51]}  exd5 {[%clk 0:15:07]} 6. Bf4 {[%clk 0:15:51]}  O-O {[%clk 0:15:07]} 7. e3 {[%clk 0:15:51]}  c5 {[%clk 0:15:07]} 8. dxc5 {[%clk 0:15:51]}  Ne4 {[%clk 0:15:07]} 9. Bd3 {[%clk 0:15:50]}  Bxc3+ {[%clk 0:12:42]} 10. bxc3 {[%clk 0:15:42]}  Nd7 {[%clk 0:12:42]} 11. f3 {[%clk 0:15:50]}  Nef6 {[%clk 0:07:05]} 12. Ne2 {[%clk 0:10:34]}  Nxc5 {[%clk 0:09:51]} 13. O-O {[%clk 0:10:33]}  Re8 {[%clk 0:09:51]} 14. Rfd1 {[%clk 0:10:33]}  Bd7 {[%clk 0:09:51]} 15. Rd2 {[%clk 0:10:25]}  Rc8 {[%clk 0:07:54]} 16. Bf5 {[%clk 0:10:25]}  Qe7 {[%clk 0:07:02]} 17. Rb1 {[%clk 0:08:46]}  h6 {[%clk 0:06:48]} 18. Nd4 {[%clk 0:06:20]}  Red8 {[%clk 0:04:50]} 19. g4 {[%clk 0:05:39]}  Bxf5 {[%clk 0:03:29]} 20. Nxf5 {[%clk 0:04:19]}  Qe6 {[%clk 0:03:29]} 21. Rg2 {[%clk 0:04:07]}  Nh7 {[%clk 0:01:19]} 22. h4 {[%clk 0:04:06]}  Rd7 {[%clk 0:01:19]} 23. Rd1 {[%clk 0:04:06]}  Re8 {[%clk 0:01:19]} 24. Qb2 {[%clk 0:03:18]}  Qf6 {[%clk 0:00:06]} 25. Qb5 {[%clk 0:03:18]}  b6 {[%clk 0:00:06]} 26. Rxd5 {[%clk 0:03:18]}  a6 {[%clk 0:00:06]} 27. Qc4 {[%clk 0:03:18]}  Rxd5 {[%clk 0:00:06]} 28. Qxd5 {[%clk 0:03:18]}  Rd8 {[%clk 0:00:06]} 29. Qe5 {[%clk 0:03:18]}  Ne6 {[%clk 0:00:42]} 30. Qxf6 {[%clk 0:02:31]}  Nxf6 {[%clk 0:00:42]} 31. Be5 {[%clk 0:02:31]}  Nd7 {[%clk 0:00:42]} 32. Bd4 {[%clk 0:02:38]}  Ndc5 {[%clk 0:00:42]} 33. g5 {[%clk 0:02:38]}  hxg5 {[%clk 0:00:42]} 34. hxg5 {[%clk 0:02:38]}  Rd7 {[%clk 0:00:42]} 35. f4 {[%clk 0:02:38]}  Ne4 {[%clk 0:00:42]} 36. a4 {[%clk 0:01:41]}  Nxd4 {[%clk 0:00:37]} 37. cxd4 {[%clk 0:01:41]}  g6 {[%clk 0:00:37]} 38. Nh6+ {[%clk 0:01:41]}  Kg7 {[%clk 0:00:37]} 39. Rb2 {[%clk 0:01:41]}  Rd6 {[%clk 0:00:37]} 40. Kg2 {[%clk 0:01:41]}  Rc6 {[%clk 0:00:37]} 41. Ng4 {[%clk 0:01:41]}  Nc3 {[%clk 0:00:37]} 42. Ne5 {[%clk 0:01:14]}  Re6 {[%clk 0:00:31]} 43. Rc2 {[%clk 0:01:14]}  Nxa4 {[%clk 0:00:31]} 44. Rc7 {[%clk 0:01:14]}  b5 {[%clk 0:00:31]} 45. d5 {[%clk 0:01:14]}  Rd6 {[%clk 0:00:31]} 46. e4 {[%clk 0:01:14]}  b4 {[%clk 0:00:31]} 47. Nxf7 {[%clk 0:01:14]}  Rb6 {[%clk 0:00:31]} 48. d6 {[%clk 0:01:14]}  Rb8 {[%clk 0:00:31]} 49. Ne5+ {[%clk 0:01:14]}  Kg8 {[%clk 0:00:31]} 50. Nc6 {[%clk 0:01:14]} 1-0


[Site "http://www.Chess.com"]

[Event "FIDE World Rapid Chess Championship 2021"]
[White "Theodorou, Nikolas"]
[Black "Vachier-Lagrave, Maxime"]
[WhiteFideId "4262875"]
[BlackFideId "623539"]
[WhiteElo "2559"]
[BlackElo "2773"]
[Result "1/2-1/2"]
[Round "07"]
[TimeControl "900+10"]
[Date "2021.12.27"]
[WhiteClock "0:00:27"]
[BlackClock "0:07:01"]

1. d4 {[%clk 0:15:00]}  Nf6 {[%clk 0:15:00]} 2. Nf3 {[%clk 0:15:00]}  g6 {[%clk 0:15:00]} 3. Nbd2 {[%clk 0:15:00]}  d5 {[%clk 0:15:00]} 4. e3 {[%clk 0:15:00]}  Bg7 {[%clk 0:15:00]} 5. Be2 {[%clk 0:15:00]}  O-O {[%clk 0:15:00]} 6. b4 {[%clk 0:15:00]}  a5 {[%clk 0:15:00]} 7. b5 {[%clk 0:15:00]}  c5 {[%clk 0:15:00]} 8. bxc6 {[%clk 0:15:00]}  Nxc6 {[%clk 0:15:00]} 9. O-O {[%clk 0:15:58]}  Bf5 {[%clk 0:15:59]} 10. c4 {[%clk 0:15:58]}  Nb4 {[%clk 0:15:59]} 11. Bb2 {[%clk 0:15:58]}  Rc8 {[%clk 0:15:59]} 12. Qb3 {[%clk 0:15:58]}  dxc4 {[%clk 0:15:59]} 13. Bxc4 {[%clk 0:15:58]}  Bc2 {[%clk 0:15:59]} 14. Qa3 {[%clk 0:14:08]}  Ne4 {[%clk 0:15:55]} 15. Rac1 {[%clk 0:14:08]}  Nxd2 {[%clk 0:16:03]} 16. Nxd2 {[%clk 0:11:35]}  e5 {[%clk 0:13:49]} 17. d5 {[%clk 0:11:43]}  b5 {[%clk 0:13:01]} 18. Bb3 {[%clk 0:09:35]}  Qb6 {[%clk 0:13:01]} 19. Bxc2 {[%clk 0:09:35]}  Nxc2 {[%clk 0:13:01]} 20. Qd3 {[%clk 0:09:30]}  Nb4 {[%clk 0:11:04]} 21. Qb3 {[%clk 0:09:30]}  Na6 {[%clk 0:11:04]} 22. Ne4 {[%clk 0:08:05]}  a4 {[%clk 0:11:10]} 23. Qa3 {[%clk 0:08:05]}  Rc7 {[%clk 0:09:03]} 24. Rxc7 {[%clk 0:06:19]}  Nxc7 {[%clk 0:09:03]} 25. Rd1 {[%clk 0:06:19]}  Rd8 {[%clk 0:09:03]} 26. d6 {[%clk 0:06:19]}  Ne6 {[%clk 0:09:03]} 27. Qd3 {[%clk 0:06:19]}  Qc6 {[%clk 0:09:20]} 28. Rc1 {[%clk 0:04:24]}  Qb7 {[%clk 0:09:20]} 29. Nc5 {[%clk 0:02:35]}  Nxc5 {[%clk 0:08:32]} 30. Rxc5 {[%clk 0:02:35]}  e4 {[%clk 0:08:32]} 31. Qxb5 {[%clk 0:02:35]}  Rxd6 {[%clk 0:08:32]} 32. g3 {[%clk 0:02:35]}  Qxb5 {[%clk 0:08:44]} 33. Rxb5 {[%clk 0:00:41]}  Rd1+ {[%clk 0:08:44]} 34. Kg2 {[%clk 0:00:41]}  Rb1 {[%clk 0:08:44]} 35. Rb8+ {[%clk 0:00:41]}  Bf8 {[%clk 0:08:44]} 36. g4 {[%clk 0:00:41]}  f6 {[%clk 0:08:18]} 37. Be5 {[%clk 0:00:29]}  Rxb8 {[%clk 0:08:18]} 38. Bxb8 {[%clk 0:00:29]}  Kf7 {[%clk 0:08:18]} 39. f3 {[%clk 0:00:29]}  f5 {[%clk 0:08:18]} 40. gxf5 {[%clk 0:00:29]}  gxf5 {[%clk 0:08:18]} 41. fxe4 {[%clk 0:00:29]}  fxe4 {[%clk 0:08:18]} 42. Kg3 {[%clk 0:00:29]}  Ke6 {[%clk 0:07:01]} 43. Kf4 {[%clk 0:00:27]}  Kd5 {[%clk 0:07:01]} 44. Kf5 {[%clk 0:00:27]}  Be7 {[%clk 0:07:01]} 45. h3 {[%clk 0:00:27]}  a3 {[%clk 0:07:01]} 46. Bf4 {[%clk 0:00:27]}  Bc5 {[%clk 0:07:01]} 47. Bh6 {[%clk 0:00:27]}  Be7 {[%clk 0:07:01]} 48. Bf4 {[%clk 0:00:27]}  Bh4 {[%clk 0:07:01]} 49. Bh6 {[%clk 0:00:27]}  Be7 {[%clk 0:07:01]} 1/2-1/2


[Site "http://www.Chess.com"]